Cogmind - Beta 9.6 @@@ ROGUE MODE // 2020.07.25 @ 02:24:18 Player: Phillammon Result: Destroyed by as-24151 with Assembled Rifle Performance ------------- Evolutions (0) 0 Regions Visited (2) 400 Robots Destroyed (17) 85 Value Destroyed (199) 199 Prototype IDs (0) 0 Alien Tech Used (0) 0 Bonus (0) 0 TOTAL SCORE: 684 Bonus ------- None Cogmind --------- Core Integrity 0/250 Matter 129/300 Energy 85/100 System Corruption 5% Temperature Cool (0) Movement Core (400) Ox7 Location -10/Mines Parts ------- > --- POWER (1) -------- (None) > --- PROPULSION (2) --- (None) > --- UTILITY (2) ------ Small Storage Unit Large Storage Unit > --- WEAPON (2) ------- Heavy Assault Rifle > --- INVENTORY (12) --- Heavy Assault Rifle Heavy Assault Rifle Peak State ------------ > --- POWER ------------ Light Ion Engine > --- PROPULSION ------- Aluminum Leg Aluminum Leg > --- UTILITY ---------- Small Storage Unit Large Storage Unit > --- WEAPON ----------- Heavy Assault Rifle Heavy Assault Rifle > --- INVENTORY -------- Heavy Assault Rifle Heavy Assault Rifle Grenade Launcher [Rating: 9] Favorites ----------- Power Light Ion Engine Engine Light Ion Engine Propulsion Aluminum Leg Leg Aluminum Leg Utility Small Storage Unit Storage Small Storage Unit Weapon Heavy Assault Rifle Energy Gun Small Laser Ballistic Gun Heavy Assault Rifle Launcher Grenade Launcher Build | -11 -10 -10 ------- Run | Scr Mat Min Slots Evolved . | . . . Power . | . . . Propulsion . | . . . Utility . | . . . Weapon . | . . . Parts Attached 5 | . 4 1 Power . | . . . Engine . | . . . Core . | . . . Reactor . | . . . Propulsion . | . . . Treads . | . . . Leg . | . . . Wheel . | . . . Hover . | . . . Flight . | . . . Utility 1 | . 1 . Device . | . . . Storage 1 | . 1 . Processor . | . . . Hackware . | . . . Protection . | . . . Artifact . | . . . Weapon 4 | . 3 1 Energy Gun . | . . . Energy Cannon . | . . . Ballistic Gun 3 | . 2 1 Ballistic Cannon . | . . . Launcher 1 | . 1 . Special Weapon . | . . . Impact Weapon . | . . . Slashing Weapon . | . . . Piercing Weapon . | . . . Special Melee Weapon . | . . . Unidentified Prototypes . | . . . Parts Lost 5 | . 1 4 Power 1 | . . 1 Propulsion 2 | . . 2 Utility . | . . . Weapon 2 | . 1 1 Highest Loss Streak 4 | . 1 4 Average Slot Usage (%) 86 | . 88 77 Engine 13 | . 14 11 Leg 27 | . 28 25 Storage 20 | . 19 28 Energy Gun 1 | . 1 . Ballistic Gun 18 | . 22 . Launcher 3 | . 2 11 Naked Turns . | . . . Heaviest Build 29 | 10 29 26 Greatest Support 20 | 20 20 20 Greatest Overweight (x) 1 | . 1 1 Average Overweight (x) . | . . 1 Largest Inventory Capacity 12 | 6 12 12 Average Capacity 8 | 6 8 12 Most Carried 5 | 5 4 3 Average Carried 2 | 3 2 2 Final Capacity 12 | 6 12 12 Final Carried 3 | 1 3 2 Class Distribution -------------------- 100% | Mutant Dominant Class ---------------- Mutant | -10/Materials Mutant | -10/Mines Resources | -11 -10 -10 ----------- Run | Scr Mat Min Matter Collected 227 | 200 27 . Remotely . | . . . Salvage Created 103 | . 89 14 Parts 16 | . 15 1 Haulers Intercepted . | . . . Recyclers Shooed . | . . . Parts Field Recycled . | . . . Retrieved Matter . | . . . Parts Self-Destructed . | . . . Prevented . | . . . Kills | -11 -10 -10 ------- Run | Scr Mat Min Combat Hostiles Destroyed 13 | . 6 7 Guns 4 | . 4 . AOE 9 | . 2 7 Classes Destroyed 4 | . 3 1 Worker 3 | . 2 1 Watcher 1 | . 1 . Swarmer 6 | . 6 . Assembled 7 | . . 7 Best Kill Streak 7 | . 5 7 Combat Bots Only 7 | . 3 7 Max Kills in Single Turn 3 | . 2 3 Gunslinging . | . . . Exploded 3 | . 1 3 Melee . | . . . Uniques/NPCs Destroyed . | . . . Combat | -11 -10 -10 -------- Run | Scr Mat Min Damage Taken 869 | . 398 471 Core 260 | . 72 188 Absorbed by Shields . | . . . Core Remaining (%) 100 | 100 . . Volleys Fired 22 | . 17 5 Largest 2 | . 2 1 Hottest 53 | . 53 30 Shots Fired 39 | . 34 5 Gun 31 | . 31 . Cannon . | . . . Launcher 8 | . 3 5 Special . | . . . Kinetic 31 | . 31 . Thermal . | . . . Explosive 8 | . 3 5 Electromagnetic . | . . . Robot Hit Streak 2 | . 2 . Robot Miss Streak 7 | . 7 4 Penetration Max . | . . . Secondary Targets 3 | . 3 . Max Gunslinging Chain 1 | . 1 . Shots Hit Robots 12 | . 12 . Core Hits 37 | . 9 28 Critical Hits 1 | . 1 . Critical Kills . | . . . Critical Parts Destroyed 1 | . 1 . Melee Attacks . | . . . Impact . | . . . Slashing . | . . . Piercing . | . . . Sneak Attacks . | . . . Combat Hostiles . | . . . Follow-up Attacks . | . . . Damage Inflicted 1241 | . 355 886 Guns 146 | . 146 . Cannons . | . . . Explosions 1095 | . 209 886 Melee . | . . . Ramming . | . . . Kinetic 146 | . 146 . Thermal 133 | . 63 70 Explosive 962 | . 146 816 Electromagnetic . | . . . Impact . | . . . Slashing . | . . . Piercing . | . . . Highest Corruption 5 | . . 5 Average Corruption 5 | . . 5 Corruption Purged . | . . . Overload Shots . | . . . Overflow Damage 89 | . 46 43 Projectiles . | . . . Explosions 89 | . 46 43 Melee . | . . . Knockbacks . | . . . Impact . | . . . Kinetic . | . . . Secondary . | . . . Self-Inflicted Damage 242 | . 78 164 Shots 7 | . 2 5 Rammed . | . . . Targets Rammed . | . . . Kicked . | . . . Crushed . | . . . Highest Temperature 9 | . 9 7 Average Temperature 6 | . 9 4 Received Heat Transfer . | . . . Siege Activations . | . . . Robots Corrupted . | . . . Combat Hostiles . | . . . Parts Fried . | . . . Impact Corruptions . | . . . Robots Melted . | . . . Combat Hostiles . | . . . Parts Melted . | . . . Heat Transferred 150 | . 50 100 Parts Sabotaged . | . . . Parts Stolen . | . . . Parts Stripped . | . . . Power Chain Reactions . | . . . Missiles Intercepted . | . . . Alert | -11 -10 -10 ------- Run | Scr Mat Min Peak Influence 273 | . 273 216 Average Influence 106 | . 83 213 Maximum Alert Level 1 | . 1 1 Low Security (%) 75 | 100 91 4 Level 1 24 | . 8 95 Level 2 . | . . . Level 3 . | . . . Level 4 . | . . . Level 5 . | . . . High Security . | . . . Max Security . | . . . Squads Dispatched 2 | . 2 . Investigation . | . . . Extermination . | . . . Reinforcement 2 | . 2 . Assault . | . . . Garrison . | . . . Intercept . | . . . Construction Impeded . | . . . Haulers Reinforced . | . . . Stealth | -11 -10 -10 --------- Run | Scr Mat Min Distress Signals . | . . . Communications Jammed . | . . . Distress Signals . | . . . Times Spotted 27 | . 11 16 Peak Tracking Total 16 | . 4 16 Tactical Retreats . | . . . Traps | -11 -10 -10 ------- Run | Scr Mat Min Traps Triggered . | . . . Indirectly . | . . . Trap Hack Attempts . | . . . Triggered . | . . . Disarmed . | . . . Reprogrammed . | . . . Reused . | . . . Traps Extracted . | . . . Installed . | . . . Triggered . | . . . Machines | -11 -10 -10 ---------- Run | Scr Mat Min Machines Disabled 12 | . 5 7 Max in Single Turn 7 | . 5 7 Machines Sabotaged . | . . . Garrisons Compromised . | . . . Overloaded Fab Kills . | . . . Fab Network Shutdowns . | . . . Hacking | -11 -10 -10 --------- Run | Scr Mat Min Machines Accessed 1 | . 1 . Terminals 1 | . 1 . Fabricators . | . . . Repair Stations . | . . . Recycling Units . | . . . Scanalyzers . | . . . Garrison Access . | . . . Total Hacks 5 | . 5 . Successful 2 | . 2 . Failed 3 | . 3 . Catastrophic . | . . . Database Lockouts . | . . . Manual 5 | . 5 . Terminals 5 | . 5 . Fabricators . | . . . Repair Stations . | . . . Recycling Units . | . . . Scanalyzers . | . . . Garrison Access . | . . . Terminal Hacks . | . . . Fabricator Hacks . | . . . Repair Station Hacks . | . . . Recycling Unit Hacks . | . . . Scanalyzer . | . . . Garrison Access Hacks . | . . . Unauthorized Hacks 2 | . 2 . Terminals 2 | . 2 . Botnet 1 | . 1 . Operators 1 | . 1 . Fabricators . | . . . Repair Stations . | . . . Recycling Units . | . . . Scanalyzers . | . . . Garrison Access . | . . . Data Cores Recovered . | . . . Used . | . . . Hacking Detections 1 | . 1 . Full Trace Events 1 | . 1 . Feedback Events . | . . . Feedback Blocked . | . . . Robot Schematics Acquired . | . . . Robots Built . | . . . Matter . | . . . Time . | . . . Total Robot Build Rating . | . . . Part Schematics Acquired . | . . . Parts Built . | . . . Matter . | . . . Time . | . . . Total Part Build Rating . | . . . Parts Repaired . | . . . Time . | . . . Parts Recycled . | . . . Recycled Matter . | . . . Retrieved Matter . | . . . Retrieved Components . | . . . Parts Scanalyzed . | . . . Part Schematics Acquired . | . . . Parts Damaged . | . . . Bothacking | -11 -10 -10 ------------ Run | Scr Mat Min Used RIF Installer . | . . . Robots Hacked . | . . . Non-combat . | . . . Combat . | . . . Robot Hacks Applied . | . . . Relay Couplers Released . | . . . Robots Rewired . | . . . Allies Hacked . | . . . Hacks Repelled . | . . . Allies | -11 -10 -10 -------- Run | Scr Mat Min Total Allies . | . . . Largest Group . | . . . Highest-Rated Group . | . . . Highest-Rated Ally . | . . . Total Orders . | . . . Ally Attacks . | . . . Total Damage . | . . . Kills . | . . . Allies Corrupted . | . . . Allies Melted . | . . . Intel | -11 -10 -10 ------- Run | Scr Mat Min Robot Analysis Total . | . . . Derelict Logs Recovered 1 | . . 1 Drone Launches . | . . . Drone Recoveries . | . . . Exploration | -11 -10 -10 ------------- Run | Scr Mat Min Turns Passed 331 | 3 267 61 Spaces Moved 192 | 1 158 33 Core . | . . . Treads . | . . . Legs 192 | 1 158 33 Wheels . | . . . Hover . | . . . Flight . | . . . Fastest Speed 120 | 120 120 150 Average Speed 132 | 120 129 150 Slowest Speed 150 | 120 150 150 Overloaded Moves . | . . . Propulsion Burnouts . | . . . Robots Hopped . | . . . Cave-ins Triggered . | . . . Exploration Rate (%) 19 | 1 38 19 Regions Visited 2 Branch Regions 1 Pre-discovered Areas . | . . . Known Exits Taken . | . . . Unknown Exits Taken 2 | 1 1 . Scrap Searched . | . . . Spaces Dug . | . . . Terrain Destroyed 82 | . 33 49 Melee . | . . . Projectile . | . . . AOE 82 | . 33 49 Actions | -11 -10 -10 --------- Run | Scr Mat Min Total 232 | 5 188 39 Wait 1 | . 1 . Move 190 | . 157 33 Hop . | . . . Pick Up 6 | . 6 . Fast Attach . | . . . Attach 4 | . 3 1 Detach . | . . . Swap 1 | . 1 . Drop 8 | 5 3 . Fire 22 | . 17 5 Melee . | . . . Ram . | . . . Kick . | . . . Crush . | . . . Escape Stasis . | . . . Rewire . | . . . Trap . | . . . Miscellaneous . | . . . Route ------- -11/Scrapyard -10/Materials -10/Mines History --------- Turn | Location | Event 4 | -11/Scrapyard | Discovered new exit (range 0) 4 | -11/Scrapyard | Entered Materials 134 | -10/Materials | Discovered new exit (range 7) 271 | -10/Materials | Entered Mines 299 | -10/Mines | Learned Materials garrison access intel 310 | -10/Mines | Assembled infested the area 317 | -10/Mines | Build established: Mutant 325 | -10/Mines | Core integrity fell below 50% 330 | -10/Mines | Core integrity fell below 20% 332 | -10/Mines | Destroyed by as-24151 with Assembled Rifle Last Messages --------------- 00271_ Plasma Injector explodes. 00299_ Acquired derelict log, extracted data. Data stored: Materials garrison access intel. 00310_ ALERT: Infestation in the mines, dispatching Demolisher response squad. 00311_ K-01 Serf collects debris. 00325_ as-95846 destroyed. 00325_ as-21278 destroyed. 00327_ as-77305 destroyed. 00327_ as-25820 destroyed. 00327_ Destroyed Asb. Hover Unit. 00327_ as-08889 destroyed. 00327_ Lgt. Ion Engine destroyed. 00329_ as-38460 destroyed. 00329_ as-72810 destroyed. 00329_ Destroyed Asb. Hover Unit. 00329_ Aluminum Leg destroyed. 00329_ System corrupted by crushing effect (+5). 00329_ Grenade Launcher destroyed. 00330_ Aluminum Leg destroyed. Map ----- +----------------------------------------------------+ | ???????????????????????????????? | | ???????????????????????????????? | | ???????????????????????????????? | | ???????????????????????????????? | | ???????????????????????????????? | | ???????????????????????????????? | | ???????????????????????????????? | | ???????????????????????????????? | | ???????????????????????????????? | | ???????????????????????????????? | | ???????????????????????????????? | | ???????????????????????????????? | | ???????????????????????????????? | | ?????????????????????????#?????? | | ????????????????????????? ?????? | | ????????????????????????? ?????? | | ????????????????????????? ?????? | | ????????????????????????# #????? | | ???????????????????????## #????? | | ??????????????????????? #????? | | ?????????????????????###a ####?? | | ?????????????????????# a% #?? | | ???????????????####?## #?? | | ??????????????## ### %a #?? | | ?????????????## ### aaaa #?? | | ??????????#### ###aa@ #?? | | ?????????## #??? | | ?????????# ## #?? | | ????????# ## ##### ###?? | | ????????## #??## ##????##???? | | ?????????# #???# ###??????????? | | ?????????# #???# #????????????? | | ?????##### #???# #????????????? | | ???## # #???# #????????????? | | ## ##### #????????????? | | # #????????????? | | #????????????? | | ####????????????? | | # #???????????????? | | #### #???????????????? | | ???#### ## #???????????????? | | ??????####### ###########?????? | | ??????# #?????? | | ??????# #?????? | | ??????# #?????? | | ??????# "#????? | | ??????# "#????? | | ?????#" "#????? | | ?????## "#????? | | ??????# "#????? | +----------------------------------------------------+ Best States ------------- Heat Dissipation 25 Energy Generation 10 Energy Capacity 125 Matter Stores 300 Matter Capacity 300 Sight Range 16 Terrain Scan Density 10 Evasion (%) 40 Item Schematics ----------------- None Robot Schematics ------------------ None Fabricated ------------ Nothing Alien Tech Used ----------------- None Achievements -------------- None Challenges ------------ None Game ------ Seed StormHardenedShotgun Manual? 0 Play Time 00:05:18 Cumulative 11.2 hours Start 2020.07.25 @ 02:19:43 End 2020.07.25 @ 02:24:18 Sessions 1 Manual Loads 0 Difficulty Rogue Special Mode None Game No. 28 Rogue 28 Adventurer 0 Explorer 0 Win Type - Total 0 Types 0/0/0/0/0/0/0 Lore% 15 Gallery% 20 Achievement% 18 Wizard Run 0 Options --------- ASCII 0 Keyboard 0 Movement Mouse Keybinds 0 Fullscreen 1 Font 18/SmallcapsGlow Map View 76x50 Tactical HUD 1 Map Filters NONE Filters NONE Steam 0 RUN: 785b806d-d200-4821-a7f2-21e5ffc2bb83